[Event "Titled Tuesday Blitz January 03 Late 2023"]
[White "Papp, Levente"]
[Black "Ibadov, Dashgyn"]
[WhiteFideId "751243"]
[BlackFideId "24107514"]
[WhiteElo "2353"]
[BlackElo "2391"]
[Result "1-0"]
[Round "05"]
[TimeControl "180+2"]
[Date "2023.01.03"]
[WhiteClock "0:00:05"]
[BlackClock "0:00:01"]

1. c4 {[%clk 0:03:00]}  Nf6 {[%clk 0:02:57]} 2. Nc3 {[%clk 0:03:00]}  c5 {[%clk 0:02:57]} 3. g3 {[%clk 0:02:59]}  e6 {[%clk 0:02:56]} 4. Nf3 {[%clk 0:02:58]}  b6 {[%clk 0:02:57]} 5. Bg2 {[%clk 0:02:58]}  Bb7 {[%clk 0:02:57]} 6. O-O {[%clk 0:02:58]}  Be7 {[%clk 0:02:57]} 7. Re1 {[%clk 0:02:53]}  d6 {[%clk 0:02:49]} 8. e4 {[%clk 0:02:51]}  a6 {[%clk 0:02:47]} 9. d4 {[%clk 0:02:48]}  cxd4 {[%clk 0:02:48]} 10. Nxd4 {[%clk 0:02:48]}  Qc7 {[%clk 0:02:47]} 11. b3 {[%clk 0:02:44]}  O-O {[%clk 0:02:45]} 12. Bb2 {[%clk 0:02:37]}  Rc8 {[%clk 0:02:41]} 13. Rc1 {[%clk 0:02:29]}  Nbd7 {[%clk 0:02:34]} 14. f4 {[%clk 0:02:08]}  Nc5 {[%clk 0:02:29]} 15. f5 {[%clk 0:01:58]}  e5 {[%clk 0:02:17]} 16. Nc2 {[%clk 0:01:56]}  b5 {[%clk 0:02:12]} 17. Ne3 {[%clk 0:01:43]}  Ncxe4 {[%clk 0:01:56]} 18. Ncd5 {[%clk 0:00:57]}  Bxd5 {[%clk 0:01:41]} 19. Nxd5 {[%clk 0:00:29]}  Qa7+ {[%clk 0:01:35]} 20. Bd4 {[%clk 0:00:25]}  exd4 {[%clk 0:01:31]} 21. Bxe4 {[%clk 0:00:25]}  Nxd5 {[%clk 0:01:04]} 22. Bxd5 {[%clk 0:00:26]}  Bg5 {[%clk 0:01:04]} 23. Rb1 {[%clk 0:00:23]}  Be3+ {[%clk 0:01:00]} 24. Kg2 {[%clk 0:00:23]}  Rab8 {[%clk 0:01:01]} 25. f6 {[%clk 0:00:18]}  g6 {[%clk 0:00:53]} 26. Qf3 {[%clk 0:00:18]}  Re8 {[%clk 0:00:48]} 27. h4 {[%clk 0:00:13]}  Bh6 {[%clk 0:00:36]} 28. h5 {[%clk 0:00:09]}  Re3 {[%clk 0:00:35]} 29. Qg4 {[%clk 0:00:04]}  g5 {[%clk 0:00:18]} 30. Rxe3 {[%clk 0:00:04]}  dxe3 {[%clk 0:00:18]} 31. Qe4 {[%clk 0:00:04]}  Qd7 {[%clk 0:00:13]} 32. Qxe3 {[%clk 0:00:02]}  Re8 {[%clk 0:00:11]} 33. Qf3 {[%clk 0:00:02]}  g4 {[%clk 0:00:11]} 34. Qf2 {[%clk 0:00:02]}  Be3 {[%clk 0:00:09]} 35. Qc2 {[%clk 0:00:02]}  Bc5 {[%clk 0:00:06]} 36. Rf1 {[%clk 0:00:02]}  Re5 {[%clk 0:00:06]} 37. Rf4 {[%clk 0:00:03]}  Qe8 {[%clk 0:00:05]} 38. Be4 {[%clk 0:00:03]}  Kh8 {[%clk 0:00:05]} 39. Qd3 {[%clk 0:00:04]}  bxc4 {[%clk 0:00:03]} 40. bxc4 {[%clk 0:00:04]}  h6 {[%clk 0:00:03]} 41. Rxg4 {[%clk 0:00:05]}  Qb8 {[%clk 0:00:02]} 42. Rg7 {[%clk 0:00:05]}  Qb2+ {[%clk 0:00:02]} 43. Kh3 {[%clk 0:00:05]}  Qf2 {[%clk 0:00:02]} 44. Bf3 {[%clk 0:00:05]}  Re3 {[%clk 0:00:01]} 45. Qh7# {[%clk 0:00:05]} 1-0


[Site "https://www.chess.com"]

[Event "Titled Tuesday Blitz January 03 Late 2023"]
[White "Pesotskiy, Mikhail"]
[Black "Baskin, Robert"]
[WhiteFideId "34164453"]
[BlackFideId "24662402"]
[WhiteElo "2153"]
[BlackElo "2442"]
[Result "0-1"]
[Round "05"]
[TimeControl "180+2"]
[Date "2023.01.03"]
[WhiteClock "0:00:07"]
[BlackClock "0:00:24"]

1. d4 {[%clk 0:03:00]}  d6 {[%clk 0:02:26]} 2. c4 {[%clk 0:02:29]}  Nc6 {[%clk 0:02:25]} 3. Nc3 {[%clk 0:02:28]}  g6 {[%clk 0:02:25]} 4. h4 {[%clk 0:02:27]}  Bg7 {[%clk 0:02:22]} 5. e3 {[%clk 0:02:21]}  e5 {[%clk 0:02:02]} 6. d5 {[%clk 0:02:21]}  Nce7 {[%clk 0:02:01]} 7. h5 {[%clk 0:02:22]}  f5 {[%clk 0:02:00]} 8. Nf3 {[%clk 0:02:15]}  Nf6 {[%clk 0:01:56]} 9. h6 {[%clk 0:02:12]}  Bf8 {[%clk 0:01:56]} 10. Ng5 {[%clk 0:02:13]}  a5 {[%clk 0:01:47]} 11. Ne6 {[%clk 0:01:57]}  Bxe6 {[%clk 0:01:46]} 12. dxe6 {[%clk 0:01:58]}  c6 {[%clk 0:01:45]} 13. e4 {[%clk 0:01:53]}  f4 {[%clk 0:01:45]} 14. g3 {[%clk 0:01:52]}  g5 {[%clk 0:01:30]} 15. Bh3 {[%clk 0:00:48]}  Bxh6 {[%clk 0:01:19]} 16. b3 {[%clk 0:00:48]}  Ng6 {[%clk 0:01:00]} 17. Ba3 {[%clk 0:00:32]}  Bf8 {[%clk 0:00:59]} 18. Bf5 {[%clk 0:00:31]}  Rg8 {[%clk 0:00:56]} 19. Rxh7 {[%clk 0:00:13]}  Nxh7 {[%clk 0:00:55]} 20. Qh5 {[%clk 0:00:13]}  Qf6 {[%clk 0:00:39]} 21. Qxh7 {[%clk 0:00:14]}  Rg7 {[%clk 0:00:39]} 22. Qh5 {[%clk 0:00:09]}  O-O-O {[%clk 0:00:37]} 23. O-O-O {[%clk 0:00:08]}  Be7 {[%clk 0:00:38]} 24. Rh1 {[%clk 0:00:07]}  Rh8 {[%clk 0:00:33]} 25. Qxh8+ {[%clk 0:00:07]}  Nxh8 {[%clk 0:00:33]} 26. Rxh8+ {[%clk 0:00:08]}  Kc7 {[%clk 0:00:34]} 27. Na4 {[%clk 0:00:07]}  Rg6 {[%clk 0:00:26]} 28. c5 {[%clk 0:00:07]}  Qxh8 {[%clk 0:00:24]} 0-1


[Site "https://www.chess.com"]

[Event "Titled Tuesday Blitz January 03 Late 2023"]
[White "Aldokhin, Ivan"]
[Black "Fernandez Garcia, Gumersindo"]
[WhiteFideId "24115720"]
[BlackFideId "24516740"]
[WhiteElo "2413"]
[BlackElo "2160"]
[Result "1-0"]
[Round "05"]
[TimeControl "180+2"]
[Date "2023.01.03"]
[WhiteClock "0:00:06"]
[BlackClock "0:00:16"]

1. e4 {[%clk 0:02:51]}  d6 {[%clk 0:02:57]} 2. d4 {[%clk 0:02:51]}  Nf6 {[%clk 0:02:58]} 3. Nc3 {[%clk 0:02:51]}  e5 {[%clk 0:02:58]} 4. Nf3 {[%clk 0:02:51]}  Nbd7 {[%clk 0:02:58]} 5. Bc4 {[%clk 0:02:51]}  Be7 {[%clk 0:02:59]} 6. g4 {[%clk 0:02:50]}  exd4 {[%clk 0:02:51]} 7. Qxd4 {[%clk 0:02:39]}  c5 {[%clk 0:02:35]} 8. Qd1 {[%clk 0:02:04]}  Nxg4 {[%clk 0:02:25]} 9. Bf4 {[%clk 0:01:50]}  Nde5 {[%clk 0:02:19]} 10. Bxe5 {[%clk 0:01:46]}  Nxe5 {[%clk 0:02:19]} 11. Nxe5 {[%clk 0:01:42]}  dxe5 {[%clk 0:02:18]} 12. Qh5 {[%clk 0:01:18]}  O-O {[%clk 0:02:02]} 13. Nd5 {[%clk 0:01:16]}  Be6 {[%clk 0:01:36]} 14. O-O-O {[%clk 0:01:14]}  Bxd5 {[%clk 0:01:31]} 15. Rxd5 {[%clk 0:01:12]}  Qc7 {[%clk 0:01:22]} 16. Rhd1 {[%clk 0:00:47]}  Rad8 {[%clk 0:01:09]} 17. Rxd8 {[%clk 0:00:37]}  Bxd8 {[%clk 0:01:06]} 18. Qh3 {[%clk 0:00:37]}  Bg5+ {[%clk 0:00:57]} 19. Kb1 {[%clk 0:00:35]}  Rd8 {[%clk 0:00:52]} 20. Bd5 {[%clk 0:00:26]}  c4 {[%clk 0:00:47]} 21. Qf5 {[%clk 0:00:19]}  Bf6 {[%clk 0:00:47]} 22. Rg1 {[%clk 0:00:18]}  Qb6 {[%clk 0:00:45]} 23. Rg3 {[%clk 0:00:17]}  h6 {[%clk 0:00:37]} 24. a3 {[%clk 0:00:14]}  Kf8 {[%clk 0:00:37]} 25. Bxc4 {[%clk 0:00:11]}  Qc5 {[%clk 0:00:29]} 26. Bd5 {[%clk 0:00:09]}  b5 {[%clk 0:00:19]} 27. Rc3 {[%clk 0:00:09]}  Qd6 {[%clk 0:00:19]} 28. Rc6 {[%clk 0:00:09]}  Qd7 {[%clk 0:00:18]} 29. Rxf6 {[%clk 0:00:05]}  gxf6 {[%clk 0:00:18]} 30. Qxf6 {[%clk 0:00:06]}  Qe7 {[%clk 0:00:16]} 31. Qh8# {[%clk 0:00:06]} 1-0


[Site "https://www.chess.com"]

[Event "Titled Tuesday Blitz January 03 Late 2023"]
[White "Fishbein, Mitch"]
[Black "Espinosa, Pedro"]
[WhiteFideId "30922917"]
[BlackFideId "30921066"]
[WhiteElo "2120"]
[BlackElo "2229"]
[Result "1/2-1/2"]
[Round "05"]
[TimeControl "180+2"]
[Date "2023.01.03"]
[WhiteClock "0:00:10"]
[BlackClock "0:00:11"]

1. d4 {[%clk 0:03:00]}  d5 {[%clk 0:02:59]} 2. c4 {[%clk 0:02:59]}  c6 {[%clk 0:02:59]} 3. Nf3 {[%clk 0:02:58]}  Nf6 {[%clk 0:03:00]} 4. Qc2 {[%clk 0:02:57]}  dxc4 {[%clk 0:02:58]} 5. Qxc4 {[%clk 0:02:56]}  Bf5 {[%clk 0:02:58]} 6. g3 {[%clk 0:02:55]}  e6 {[%clk 0:02:58]} 7. Bg2 {[%clk 0:02:55]}  Nbd7 {[%clk 0:02:58]} 8. O-O {[%clk 0:02:55]}  Be7 {[%clk 0:02:59]} 9. Qb3 {[%clk 0:02:55]}  Qb6 {[%clk 0:02:54]} 10. Nbd2 {[%clk 0:02:53]}  O-O {[%clk 0:02:52]} 11. Nc4 {[%clk 0:02:50]}  Qxb3 {[%clk 0:02:50]} 12. axb3 {[%clk 0:02:51]}  Rfc8 {[%clk 0:02:20]} 13. Bf4 {[%clk 0:02:48]}  Be4 {[%clk 0:02:11]} 14. Nd6 {[%clk 0:02:24]}  Bxd6 {[%clk 0:02:02]} 15. Bxd6 {[%clk 0:02:25]}  a6 {[%clk 0:01:52]} 16. Rfc1 {[%clk 0:02:24]}  Nb6 {[%clk 0:01:45]} 17. Bf1 {[%clk 0:02:10]}  Nbd5 {[%clk 0:01:41]} 18. Nd2 {[%clk 0:02:06]}  Bg6 {[%clk 0:01:36]} 19. f3 {[%clk 0:01:39]}  Rd8 {[%clk 0:01:33]} 20. Bc5 {[%clk 0:01:36]}  Ne3 {[%clk 0:01:28]} 21. Nc4 {[%clk 0:01:31]}  Nc2 {[%clk 0:01:21]} 22. Bb6 {[%clk 0:01:05]}  Nxa1 {[%clk 0:01:17]} 23. Rxa1 {[%clk 0:01:04]}  Rd7 {[%clk 0:01:03]} 24. Ne5 {[%clk 0:00:57]}  Rd6 {[%clk 0:01:01]} 25. Nc4 {[%clk 0:00:38]}  Rd5 {[%clk 0:00:45]} 26. Bc5 {[%clk 0:00:38]}  Rdd8 {[%clk 0:00:29]} 27. e4 {[%clk 0:00:30]}  Nd7 {[%clk 0:00:28]} 28. Bd6 {[%clk 0:00:26]}  f6 {[%clk 0:00:25]} 29. Bc7 {[%clk 0:00:22]}  Rf8 {[%clk 0:00:23]} 30. Bd6 {[%clk 0:00:19]}  Rfe8 {[%clk 0:00:23]} 31. Na5 {[%clk 0:00:15]}  Ra7 {[%clk 0:00:20]} 32. Kf2 {[%clk 0:00:12]}  e5 {[%clk 0:00:20]} 33. Bc4+ {[%clk 0:00:11]}  Bf7 {[%clk 0:00:21]} 34. d5 {[%clk 0:00:11]}  cxd5 {[%clk 0:00:21]} 35. exd5 {[%clk 0:00:11]}  b5 {[%clk 0:00:21]} 36. Nc6 {[%clk 0:00:08]}  Rb7 {[%clk 0:00:20]} 37. Ne7+ {[%clk 0:00:06]}  Rxe7 {[%clk 0:00:18]} 38. Bxe7 {[%clk 0:00:06]}  bxc4 {[%clk 0:00:18]} 39. bxc4 {[%clk 0:00:07]}  Rxb2+ {[%clk 0:00:18]} 40. Ke3 {[%clk 0:00:08]}  Nb8 {[%clk 0:00:15]} 41. Bd6 {[%clk 0:00:05]}  Rb6 {[%clk 0:00:14]} 42. Bxb8 {[%clk 0:00:05]}  Rxb8 {[%clk 0:00:14]} 43. Rxa6 {[%clk 0:00:06]}  Kf8 {[%clk 0:00:14]} 44. f4 {[%clk 0:00:06]}  Rb3+ {[%clk 0:00:14]} 45. Kf2 {[%clk 0:00:03]}  exf4 {[%clk 0:00:14]} 46. gxf4 {[%clk 0:00:04]}  Rc3 {[%clk 0:00:14]} 47. Rc6 {[%clk 0:00:04]}  Be8 {[%clk 0:00:15]} 48. Rc7 {[%clk 0:00:03]}  Bf7 {[%clk 0:00:14]} 49. Rc6 {[%clk 0:00:03]}  h5 {[%clk 0:00:14]} 50. h4 {[%clk 0:00:03]}  Kg8 {[%clk 0:00:14]} 51. Ke2 {[%clk 0:00:03]}  Kh7 {[%clk 0:00:13]} 52. Kd2 {[%clk 0:00:03]}  Ra3 {[%clk 0:00:14]} 53. d6 {[%clk 0:00:03]}  Bg6 {[%clk 0:00:13]} 54. c5 {[%clk 0:00:03]}  Be4 {[%clk 0:00:12]} 55. Rc7 {[%clk 0:00:02]}  Rd3+ {[%clk 0:00:12]} 56. Ke2 {[%clk 0:00:02]}  f5 {[%clk 0:00:12]} 57. d7 {[%clk 0:00:03]}  Rd4 {[%clk 0:00:10]} 58. c6 {[%clk 0:00:03]}  Bxc6 {[%clk 0:00:09]} 59. Rxc6 {[%clk 0:00:04]}  Rxd7 {[%clk 0:00:10]} 60. Ke3 {[%clk 0:00:04]}  Re7+ {[%clk 0:00:10]} 61. Kf3 {[%clk 0:00:04]}  g6 {[%clk 0:00:10]} 62. Rc5 {[%clk 0:00:04]}  Ra7 {[%clk 0:00:11]} 63. Rc3 {[%clk 0:00:04]}  Ra4 {[%clk 0:00:11]} 64. Rb3 {[%clk 0:00:04]}  Ra1 {[%clk 0:00:11]} 65. Rc3 {[%clk 0:00:04]}  Kh6 {[%clk 0:00:11]} 66. Kg3 {[%clk 0:00:04]}  Rg1+ {[%clk 0:00:12]} 67. Kh3 {[%clk 0:00:04]}  Rg4 {[%clk 0:00:11]} 68. Rf3 {[%clk 0:00:04]}  Kg7 {[%clk 0:00:12]} 69. Rf2 {[%clk 0:00:04]}  Kf6 {[%clk 0:00:12]} 70. Rf1 {[%clk 0:00:04]}  Ke6 {[%clk 0:00:13]} 71. Rf2 {[%clk 0:00:04]}  Kd5 {[%clk 0:00:13]} 72. Re2 {[%clk 0:00:03]}  Rxf4 {[%clk 0:00:13]} 73. Re8 {[%clk 0:00:03]}  Rg4 {[%clk 0:00:13]} 74. Re7 {[%clk 0:00:03]}  Kd6 {[%clk 0:00:14]} 75. Re8 {[%clk 0:00:04]}  Kd7 {[%clk 0:00:14]} 76. Re1 {[%clk 0:00:04]}  Kd6 {[%clk 0:00:13]} 77. Re2 {[%clk 0:00:04]}  Re4 {[%clk 0:00:13]} 78. Rg2 {[%clk 0:00:03]}  Re6 {[%clk 0:00:14]} 79. Kg3 {[%clk 0:00:02]}  Ke7 {[%clk 0:00:14]} 80. Kf4 {[%clk 0:00:03]}  Kf6 {[%clk 0:00:15]} 81. Ra2 {[%clk 0:00:02]}  Re4+ {[%clk 0:00:15]} 82. Kg3 {[%clk 0:00:03]}  Rd4 {[%clk 0:00:13]} 83. Ra6+ {[%clk 0:00:03]}  Kg7 {[%clk 0:00:13]} 84. Ra7+ {[%clk 0:00:03]}  Kh6 {[%clk 0:00:14]} 85. Ra6 {[%clk 0:00:04]}  Rd3+ {[%clk 0:00:14]} 86. Kg2 {[%clk 0:00:04]}  Rc3 {[%clk 0:00:13]} 87. Rb6 {[%clk 0:00:05]}  Rc4 {[%clk 0:00:11]} 88. Kg3 {[%clk 0:00:05]}  Rg4+ {[%clk 0:00:12]} 89. Kh3 {[%clk 0:00:06]}  f4 {[%clk 0:00:12]} 90. Rb7 {[%clk 0:00:06]}  Rg1 {[%clk 0:00:10]} 91. Rf7 {[%clk 0:00:05]}  Rg3+ {[%clk 0:00:09]} 92. Kh2 {[%clk 0:00:05]}  Rg4 {[%clk 0:00:10]} 93. Kh3 {[%clk 0:00:06]}  g5 {[%clk 0:00:09]} 94. Rf6+ {[%clk 0:00:05]}  Kg7 {[%clk 0:00:10]} 95. hxg5 {[%clk 0:00:06]}  Kh7 {[%clk 0:00:04]} 96. Kh2 {[%clk 0:00:06]}  Rxg5 {[%clk 0:00:03]} 97. Rxf4 {[%clk 0:00:06]}  Rb5 {[%clk 0:00:04]} 98. Rc4 {[%clk 0:00:06]}  Kg6 {[%clk 0:00:05]} 99. Kh3 {[%clk 0:00:07]}  Rb3+ {[%clk 0:00:04]} 100. Kh2 {[%clk 0:00:07]}  Kg5 {[%clk 0:00:04]} 101. Rc5+ {[%clk 0:00:07]}  Kh4 {[%clk 0:00:05]} 102. Rc4+ {[%clk 0:00:08]}  Kg5 {[%clk 0:00:05]} 103. Rc5+ {[%clk 0:00:08]}  Kg6 {[%clk 0:00:06]} 104. Rc6+ {[%clk 0:00:09]}  Kf7 {[%clk 0:00:07]} 105. Rc7+ {[%clk 0:00:09]}  Ke6 {[%clk 0:00:08]} 106. Rc5 {[%clk 0:00:10]}  h4 {[%clk 0:00:06]} 107. Rh5 {[%clk 0:00:10]}  Rb4 {[%clk 0:00:05]} 108. Kh3 {[%clk 0:00:10]}  Kf6 {[%clk 0:00:05]} 109. Rxh4 {[%clk 0:00:10]}  Rb1 {[%clk 0:00:05]} 110. Ra4 {[%clk 0:00:09]}  Kg5 {[%clk 0:00:05]} 111. Kg3 {[%clk 0:00:09]}  Rb3+ {[%clk 0:00:05]} 112. Kf2 {[%clk 0:00:10]}  Kf5 {[%clk 0:00:06]} 113. Ke2 {[%clk 0:00:10]}  Ke5 {[%clk 0:00:06]} 114. Kd2 {[%clk 0:00:11]}  Rh3 {[%clk 0:00:07]} 115. Ke2 {[%clk 0:00:10]}  Kd5 {[%clk 0:00:07]} 116. Kf2 {[%clk 0:00:11]}  Rh2+ {[%clk 0:00:07]} 117. Kg3 {[%clk 0:00:10]}  Rc2 {[%clk 0:00:07]} 118. Kf3 {[%clk 0:00:09]}  Rc3+ {[%clk 0:00:07]} 119. Ke2 {[%clk 0:00:09]}  Rh3 {[%clk 0:00:08]} 120. Kf2 {[%clk 0:00:09]}  Kc5 {[%clk 0:00:08]} 121. Kg2 {[%clk 0:00:09]}  Rd3 {[%clk 0:00:08]} 122. Rg4 {[%clk 0:00:10]}  Kd5 {[%clk 0:00:08]} 123. Rg3 {[%clk 0:00:10]}  Rd2+ {[%clk 0:00:09]} 124. Kf3 {[%clk 0:00:10]}  Rd1 {[%clk 0:00:09]} 125. Rg5+ {[%clk 0:00:10]}  Ke6 {[%clk 0:00:09]} 126. Rg6+ {[%clk 0:00:09]}  Kf5 {[%clk 0:00:09]} 127. Ra6 {[%clk 0:00:10]}  Rd3+ {[%clk 0:00:09]} 128. Ke2 {[%clk 0:00:10]}  Rh3 {[%clk 0:00:09]} 129. Ra4 {[%clk 0:00:11]}  Rh2+ {[%clk 0:00:09]} 130. Kf3 {[%clk 0:00:11]}  Rh1 {[%clk 0:00:10]} 131. Kf2 {[%clk 0:00:11]}  Rc1 {[%clk 0:00:10]} 132. Kg2 {[%clk 0:00:11]}  Rc5 {[%clk 0:00:10]} 133. Kf3 {[%clk 0:00:11]}  Re5 {[%clk 0:00:10]} 134. Kf2 {[%clk 0:00:12]}  Re4 {[%clk 0:00:10]} 135. Rxe4 {[%clk 0:00:10]}  Kxe4 {[%clk 0:00:11]} 1/2-1/2


[Site "https://www.chess.com"]

[Event "Titled Tuesday Blitz January 03 Late 2023"]
[White "Hansen, Torbjorn Ringdal"]
[Black "Sebag, Marie"]
[WhiteFideId "1501720"]
[BlackFideId "617822"]
[WhiteElo "2432"]
[BlackElo "2430"]
[Result "0-1"]
[Round "05"]
[TimeControl "180+2"]
[Date "2023.01.03"]
[WhiteClock "0:00:09"]
[BlackClock "0:00:08"]

1. c4 {[%clk 0:03:00]}  e5 {[%clk 0:02:57]} 2. g3 {[%clk 0:03:00]}  Nf6 {[%clk 0:02:57]} 3. Bg2 {[%clk 0:03:01]}  Nc6 {[%clk 0:02:57]} 4. Nc3 {[%clk 0:03:00]}  Bc5 {[%clk 0:02:57]} 5. Nf3 {[%clk 0:02:57]}  d6 {[%clk 0:02:57]} 6. d3 {[%clk 0:02:57]}  h6 {[%clk 0:02:55]} 7. O-O {[%clk 0:02:56]}  O-O {[%clk 0:02:55]} 8. a3 {[%clk 0:02:55]}  a6 {[%clk 0:02:55]} 9. b4 {[%clk 0:02:55]}  Ba7 {[%clk 0:02:54]} 10. Bb2 {[%clk 0:02:55]}  Ne7 {[%clk 0:02:53]} 11. Rc1 {[%clk 0:02:55]}  Ng6 {[%clk 0:02:52]} 12. Nd2 {[%clk 0:02:40]}  Re8 {[%clk 0:02:49]} 13. e3 {[%clk 0:02:37]}  c6 {[%clk 0:02:48]} 14. Nde4 {[%clk 0:02:34]}  Nxe4 {[%clk 0:02:47]} 15. dxe4 {[%clk 0:02:32]}  Be6 {[%clk 0:02:45]} 16. Qe2 {[%clk 0:02:32]}  Qe7 {[%clk 0:02:35]} 17. Rfd1 {[%clk 0:02:31]}  Rad8 {[%clk 0:02:34]} 18. Rd2 {[%clk 0:02:29]}  b5 {[%clk 0:02:26]} 19. cxb5 {[%clk 0:02:17]}  axb5 {[%clk 0:02:26]} 20. a4 {[%clk 0:02:11]}  bxa4 {[%clk 0:02:12]} 21. Nxa4 {[%clk 0:02:08]}  Qb7 {[%clk 0:02:08]} 22. Bc3 {[%clk 0:01:50]}  d5 {[%clk 0:01:41]} 23. exd5 {[%clk 0:01:45]}  cxd5 {[%clk 0:01:40]} 24. Nc5 {[%clk 0:01:43]}  Bxc5 {[%clk 0:01:37]} 25. bxc5 {[%clk 0:01:44]}  Rc8 {[%clk 0:01:33]} 26. Ba5 {[%clk 0:01:27]}  e4 {[%clk 0:01:28]} 27. Rdc2 {[%clk 0:01:13]}  Ne5 {[%clk 0:01:25]} 28. Rc3 {[%clk 0:01:00]}  Nc4 {[%clk 0:01:11]} 29. Bb6 {[%clk 0:00:49]}  Nxb6 {[%clk 0:00:57]} 30. cxb6 {[%clk 0:00:50]}  Rxc3 {[%clk 0:00:54]} 31. Rxc3 {[%clk 0:00:49]}  Qxb6 {[%clk 0:00:55]} 32. Qc2 {[%clk 0:00:42]}  Rb8 {[%clk 0:00:52]} 33. h3 {[%clk 0:00:38]}  h5 {[%clk 0:00:48]} 34. Kh2 {[%clk 0:00:36]}  g6 {[%clk 0:00:48]} 35. Rc6 {[%clk 0:00:34]}  Qb2 {[%clk 0:00:47]} 36. Qxb2 {[%clk 0:00:19]}  Rxb2 {[%clk 0:00:46]} 37. Kg1 {[%clk 0:00:20]}  Kg7 {[%clk 0:00:45]} 38. Rd6 {[%clk 0:00:20]}  Kf6 {[%clk 0:00:44]} 39. Rd8 {[%clk 0:00:20]}  Ke5 {[%clk 0:00:43]} 40. Ra8 {[%clk 0:00:19]}  Rb1+ {[%clk 0:00:43]} 41. Kh2 {[%clk 0:00:19]}  Kf6 {[%clk 0:00:40]} 42. Ra5 {[%clk 0:00:19]}  Rd1 {[%clk 0:00:39]} 43. Ra6 {[%clk 0:00:19]}  Ke7 {[%clk 0:00:38]} 44. Ra7+ {[%clk 0:00:19]}  Kf8 {[%clk 0:00:37]} 45. Ra6 {[%clk 0:00:20]}  Kg7 {[%clk 0:00:37]} 46. Ra7 {[%clk 0:00:20]}  g5 {[%clk 0:00:37]} 47. Ra5 {[%clk 0:00:19]}  h4 {[%clk 0:00:34]} 48. g4 {[%clk 0:00:18]}  Rd2 {[%clk 0:00:31]} 49. Kg1 {[%clk 0:00:17]}  f5 {[%clk 0:00:30]} 50. gxf5 {[%clk 0:00:16]}  Bxf5 {[%clk 0:00:30]} 51. Rb5 {[%clk 0:00:17]}  Kf6 {[%clk 0:00:29]} 52. Rb6+ {[%clk 0:00:16]}  Be6 {[%clk 0:00:29]} 53. Rb8 {[%clk 0:00:16]}  Ke5 {[%clk 0:00:28]} 54. Rh8 {[%clk 0:00:16]}  d4 {[%clk 0:00:23]} 55. exd4+ {[%clk 0:00:15]}  Rxd4 {[%clk 0:00:23]} 56. Rh6 {[%clk 0:00:16]}  Rd1+ {[%clk 0:00:22]} 57. Kh2 {[%clk 0:00:16]}  Rd2 {[%clk 0:00:22]} 58. Kg1 {[%clk 0:00:16]}  Bd5 {[%clk 0:00:21]} 59. Rh5 {[%clk 0:00:15]}  Kf5 {[%clk 0:00:17]} 60. Rh8 {[%clk 0:00:15]}  e3 {[%clk 0:00:15]} 61. Bxd5 {[%clk 0:00:15]}  exf2+ {[%clk 0:00:14]} 62. Kg2 {[%clk 0:00:14]}  Rxd5 {[%clk 0:00:14]} 63. Kxf2 {[%clk 0:00:15]}  Rd3 {[%clk 0:00:14]} 64. Kg2 {[%clk 0:00:14]}  Rd2+ {[%clk 0:00:14]} 65. Kh1 {[%clk 0:00:14]}  Kf4 {[%clk 0:00:14]} 66. Ra8 {[%clk 0:00:14]}  Rf2 {[%clk 0:00:13]} 67. Kg1 {[%clk 0:00:13]}  Rf3 {[%clk 0:00:12]} 68. Ra4+ {[%clk 0:00:12]}  Kf5 {[%clk 0:00:11]} 69. Ra5+ {[%clk 0:00:12]}  Kg6 {[%clk 0:00:11]} 70. Kg2 {[%clk 0:00:13]}  Rb3 {[%clk 0:00:09]} 71. Rc5 {[%clk 0:00:11]}  Rb2+ {[%clk 0:00:08]} 72. Kg1 {[%clk 0:00:11]}  Re2 {[%clk 0:00:08]} 73. Kh1 {[%clk 0:00:11]}  Rf2 {[%clk 0:00:08]} 74. Kg1 {[%clk 0:00:11]}  Rf5 {[%clk 0:00:08]} 75. Rc6+ {[%clk 0:00:10]}  Kf7 {[%clk 0:00:09]} 76. Kg2 {[%clk 0:00:10]}  Rf6 {[%clk 0:00:09]} 77. Rc5 {[%clk 0:00:10]}  Kg6 {[%clk 0:00:10]} 78. Rb5 {[%clk 0:00:10]}  Re6 {[%clk 0:00:10]} 79. Ra5 {[%clk 0:00:10]}  Kf6 {[%clk 0:00:10]} 80. Rb5 {[%clk 0:00:10]}  Re2+ {[%clk 0:00:10]} 81. Kg1 {[%clk 0:00:10]}  Re5 {[%clk 0:00:11]} 82. Rb6+ {[%clk 0:00:10]}  Kf5 {[%clk 0:00:11]} 83. Rb4 {[%clk 0:00:10]}  Re4 {[%clk 0:00:11]} 84. Rb3 {[%clk 0:00:09]}  Kf4 {[%clk 0:00:12]} 85. Kg2 {[%clk 0:00:10]}  Re2+ {[%clk 0:00:12]} 86. Kg1 {[%clk 0:00:10]}  Re3 {[%clk 0:00:12]} 87. Rb5 {[%clk 0:00:09]}  Rxh3 {[%clk 0:00:11]} 88. Kg2 {[%clk 0:00:09]}  Rg3+ {[%clk 0:00:11]} 89. Kh2 {[%clk 0:00:10]}  Rc3 {[%clk 0:00:11]} 90. Rb4+ {[%clk 0:00:10]}  Kf5 {[%clk 0:00:11]} 91. Rb5+ {[%clk 0:00:11]}  Kg6 {[%clk 0:00:11]} 92. Rb6+ {[%clk 0:00:12]}  Kh5 {[%clk 0:00:11]} 93. Rb5 {[%clk 0:00:12]}  Rc2+ {[%clk 0:00:11]} 94. Kh3 {[%clk 0:00:12]}  Rc3+ {[%clk 0:00:11]} 95. Kh2 {[%clk 0:00:11]}  h3 {[%clk 0:00:11]} 96. Rb4 {[%clk 0:00:09]}  g4 {[%clk 0:00:10]} 97. Rb8 {[%clk 0:00:10]}  Rc2+ {[%clk 0:00:09]} 98. Kh1 {[%clk 0:00:09]}  g3 {[%clk 0:00:08]} 99. Rb5+ {[%clk 0:00:08]}  Kg4 {[%clk 0:00:08]} 100. Rb4+ {[%clk 0:00:09]}  Kf5 {[%clk 0:00:08]} 101. Rb3 {[%clk 0:00:09]}  Rc1# {[%clk 0:00:08]} 0-1


[Site "https://www.chess.com"]

[Event "Titled Tuesday Blitz January 03 Late 2023"]
[White "Ballester Llagaria, Luis Eduardo"]
[Black "Yeritsyan, Hayk"]
[WhiteFideId "2297620"]
[BlackFideId "13307320"]
[WhiteElo "2298"]
[BlackElo "2241"]
[Result "1-0"]
[Round "05"]
[TimeControl "180+2"]
[Date "2023.01.03"]
[WhiteClock "0:02:27"]
[BlackClock "0:01:50"]

1. e4 {[%clk 0:03:00]}  c6 {[%clk 0:02:57]} 2. Nc3 {[%clk 0:03:01]}  d5 {[%clk 0:02:57]} 3. Nf3 {[%clk 0:03:02]}  dxe4 {[%clk 0:02:56]} 4. Nxe4 {[%clk 0:03:03]}  Nd7 {[%clk 0:02:57]} 5. Bc4 {[%clk 0:02:58]}  Ngf6 {[%clk 0:02:57]} 6. Qe2 {[%clk 0:02:55]}  Nxe4 {[%clk 0:02:56]} 7. Qxe4 {[%clk 0:02:56]}  Nf6 {[%clk 0:02:56]} 8. Ne5 {[%clk 0:02:56]}  e6 {[%clk 0:02:42]} 9. Qe2 {[%clk 0:02:56]}  Bd6 {[%clk 0:02:40]} 10. d4 {[%clk 0:02:56]}  O-O {[%clk 0:02:38]} 11. O-O {[%clk 0:02:51]}  Qc7 {[%clk 0:02:33]} 12. Bf4 {[%clk 0:02:48]}  c5 {[%clk 0:01:58]} 13. Rad1 {[%clk 0:02:43]}  a6 {[%clk 0:01:54]} 14. dxc5 {[%clk 0:02:31]}  Qxc5 {[%clk 0:01:50]} 15. Nd7 {[%clk 0:02:27]} 1-0


[Site "https://www.chess.com"]